fUSD/lending_fUSD_20260614
["ID","MTS","AMOUNT","RATE_DAILY","PERIOD"]
[425067360,1781447609000,-396.17,0.0003636,2]
[425067314,1781447609000,-396.17,0.00036348,2]
[425067343,1781447609000,-643.46,0.00036355,2]
[425067345,1781447609000,-158.24269055,0.0003636,2]
[425067352,1781447609000,-395.41,0.0003636,2]
[425067338,1781447609000,-573.37,0.00036355,2]
[425067320,1781447609000,-482.27,0.00036348,2]
[425067340,1781447609000,-396.17,0.00036355,2]
[425067319,1781447609000,-573.22,0.00036348,2]
[425067316,1781447609000,-151.0,0.00036348,2]
[425067315,1781447609000,-396.17,0.00036348,2]
[425067313,1781447609000,-482.27,0.00036348,2]
[425067312,1781447609000,-481.83,0.00036348,2]
[425067318,1781447609000,-151.0,0.00036348,2]
[425067317,1781447609000,-151.0,0.00036348,2]
[425067322,1781447609000,-396.18,0.00036349,2]
[425067321,1781447609000,-185.12,0.00036348,2]
[425067332,1781447609000,-151.0,0.00036353,2]
[425067323,1781447609000,-185.12,0.00036349,2]
[425067333,1781447609000,-151.0,0.00036353,2]
[425067311,1781447609000,-151.72,0.00036348,2]
[425067328,1781447609000,-644.12,0.00036349,2]
[425067327,1781447609000,-185.12,0.00036349,2]
[425067342,1781447609000,-644.14,0.00036355,2]
[425067337,1781447609000,-644.12,0.00036355,2]
[425067335,1781447609000,-151.0,0.00036353,2]
[425067334,1781447609000,-396.17,0.00036353,2]
[425067326,1781447609000,-644.12,0.00036349,2]
[425067339,1781447609000,-644.12,0.00036355,2]
[425067330,1781447609000,-644.12,0.00036349,2]
[425067331,1781447609000,-151.0,0.00036353,2]
[425067325,1781447609000,-185.12,0.00036349,2]
[425067324,1781447609000,-396.17,0.00036349,2]
[425067329,1781447609000,-396.17,0.00036349,2]
[425067410,1781447610000,-300.0,0.00036537,2]
[425067415,1781447610000,-1815.18554688,0.00036565,2]
[425067413,1781447610000,-5000.0,0.00036559,10]
[425067400,1781447610000,-800.0,0.000365,7]
[425067408,1781447610000,-300.0,0.00036537,2]
[425067402,1781447610000,-20676.18,0.00036515,10]
[425067407,1781447610000,-5000.0,0.00036536,10]
[425067401,1781447610000,-1039.5651,0.0003651,30]
[425067403,1781447610000,-380.22,0.00036521,3]
[425067418,1781447610000,-1739.94,0.00036566,10]
[425067404,1781447610000,-380.21,0.00036521,3]
[425067409,1781447610000,-300.0,0.00036537,2]
[425067416,1781447610000,-1815.18554687,0.00036565,2]
[425067429,1781447610000,-1704.17636394,0.00036695,30]
[425067419,1781447610000,-5000.0,0.00036627,10]
[425067417,1781447610000,-1123.99,0.00036565,10]
[425067414,1781447610000,-1369.62890625,0.00036565,2]
[425067412,1781447610000,-313.66,0.00036537,2]
[425067421,1781447610000,-158.24269055,0.00036634,2]
[425067423,1781447610000,-5000.0,0.00036646,10]
[425067430,1781447610000,-455.72626199,0.00036695,120]
[425067420,1781447610000,-150.0,0.00036632,30]
[425067422,1781447610000,-1222.80994525,0.0003664,50]
[425067426,1781447610000,-5000.0,0.00036664,10]
[425067427,1781447610000,-500.0,0.00036678,120]
[425067424,1781447610000,-150.0,0.00036657,120]
[425067397,1781447610000,-800.0,0.000365,7]
[425067411,1781447610000,-300.0,0.00036537,2]
[425067405,1781447610000,-380.21,0.00036521,3]
[425067371,1781447610000,-5000.0,0.00036399,10]
[425067399,1781447610000,-800.0,0.000365,7]
[425067428,1781447610000,-1391.16437873,0.00036695,120]
[425067373,1781447610000,-298.8808056,0.00036402,120]
[425067370,1781447610000,-150.0,0.00036393,120]
[425067381,1781447610000,-2000.0,0.00036438,2]
[425067378,1781447610000,-252.05,0.00036438,120]
[425067376,1781447610000,-500.0,0.00036438,120]
[425067372,1781447610000,-416.31,0.000364,60]
[425067380,1781447610000,-8546.7129,0.00036438,2]
[425067377,1781447610000,-2000.0,0.00036438,2]
[425067374,1781447610000,-400.0,0.00036409,2]
[425067375,1781447610000,-12270.15,0.00036423,60]
[425067379,1781447610000,-1000.0,0.00036438,8]
[425067383,1781447610000,-214.55542187,0.00036453,120]
[425067398,1781447610000,-800.0,0.000365,7]
[425067394,1781447610000,-800.0,0.000365,7]
[425067393,1781447610000,-800.0,0.000365,7]
[425067382,1781447610000,-262.25,0.0003645,7]
[425067387,1781447610000,-5000.0,0.00036483,10]
[425067391,1781447610000,-800.0,0.000365,7]
[425067385,1781447610000,-2500.0,0.00036478,10]
[425067386,1781447610000,-1257.61637348,0.00036479,2]
[425067390,1781447610000,-800.0,0.000365,7]
[425067388,1781447610000,-20000.0,0.000365,7]
[425067389,1781447610000,-293.41,0.000365,5]
[425067392,1781447610000,-800.0,0.000365,7]
[425067396,1781447610000,-800.0,0.000365,7]
[425067406,1781447610000,-5000.0,0.00036534,10]
[425067395,1781447610000,-800.0,0.000365,7]
[425067384,1781447610000,-150.0,0.00036471,120]
[425067425,1781447610000,-43041.0133913,0.00036661,2]
[425067461,1781447610000,-5000.0,0.00036968,7]
[425067432,1781447610000,-1000.0,0.000367,2]
[425067460,1781447610000,-5000.0,0.00036961,10]
[425067467,1781447610000,-2000.0,0.00036986,30]
[425067468,1781447610000,-1000.0,0.00036986,8]
[425067470,1781447610000,-300.0,0.00036993,2]
[425067469,1781447610000,-150.0,0.00036988,120]
[425067472,1781447610000,-169.04721601,0.00037,2]
[425067471,1781447610000,-365.0,0.00037,2]
[425067474,1781447610000,-150.33,0.00037,2]
[425067481,1781447610000,-800.0,0.00037,7]
[425067479,1781447610000,-800.0,0.00037,7]
[425067473,1781447610000,-4500.0,0.00037,2]
[425067480,1781447610000,-800.0,0.00037,7]
[425067476,1781447610000,-34479.769025,0.00037,20]
[425067478,1781447610000,-150.0,0.00037,7]
[425067475,1781447610000,-404.26573419,0.00037,3]
[425067477,1781447610000,-800.0,0.00037,7]
[425067482,1781447610000,-800.0,0.00037,7]
[425067484,1781447610000,-800.0,0.00037,7]
[425067483,1781447610000,-800.0,0.00037,7]
[425067485,1781447610000,-800.0,0.00037,7]
[425067492,1781447610000,-50000.0,0.00037,120]
[425067489,1781447610000,-10000.0,0.00037,7]
[425067488,1781447610000,-2005.7097069,0.00037,14]
[425067487,1781447610000,-5000.0,0.00037,2]
[425067431,1781447610000,-558.26467095,0.00036695,30]
[425067486,1781447610000,-20000.0,0.00037,7]
[425067491,1781447610000,-516.0,0.00037,13]
[425067464,1781447610000,-5083.65,0.0003697,7]
[425067458,1781447610000,-5000.0,0.00036918,10]
[425067490,1781447610000,-10000.0,0.00037,7]
[425067463,1781447610000,-9338.98,0.0003697,7]
[425067465,1781447610000,-500.0,0.00036986,120]
[425067442,1781447610000,-5000.0,0.00036717,10]
[425067434,1781447610000,-605.37,0.00036704,3]
[425067436,1781447610000,-605.36,0.00036704,3]
[425067433,1781447610000,-1000.0,0.000367,2]
[425067438,1781447610000,-500.0,0.00036712,60]
[425067440,1781447610000,-2000.0,0.00036712,2]
[425067441,1781447610000,-1000.0,0.00036712,8]
[425067437,1781447610000,-154.37,0.00036712,60]
[425067443,1781447610000,-2534.85,0.00036722,30]
[425067439,1781447610000,-500.0,0.00036712,120]
[425067445,1781447610000,-202.17,0.00036726,3]
[425067454,1781447610000,-11000.0,0.000369,7]
[425067444,1781447610000,-2084.85,0.00036722,120]
[425067435,1781447610000,-605.36,0.00036704,3]
[425067456,1781447610000,-158.24269055,0.00036908,2]
[425067466,1781447610000,-2000.0,0.00036986,2]
[425067462,1781447610000,-6349.23,0.0003697,2]
[425067457,1781447610000,-212.82135112,0.0003691,120]
[425067459,1781447610000,-337.29,0.00036952,10]
[425067453,1781447610000,-150.0,0.00036899,120]
[425067449,1781447610000,-5000.0,0.00036762,7]
[425067452,1781447610000,-162833.448252,0.00036844,2]
[425067448,1781447610000,-150.36478221,0.00036756,2]
[425067451,1781447610000,-5000.0,0.00036831,7]
[425067450,1781447610000,-1643.71455253,0.000368,2]
[425067447,1781447610000,-5000.0,0.00036733,10]
[425067455,1781447610000,-5000.0,0.000369,7]
[425067446,1781447610000,-202.18,0.00036726,3]
[425067531,1781447611000,-396.09,0.0003717,2]
[425067535,1781447611000,-482.27,0.0003717,2]
[425067541,1781447611000,-573.17,0.0003717,2]
[425067530,1781447611000,-482.27,0.0003717,2]
[425067524,1781447611000,-396.17,0.0003717,2]
[425067527,1781447611000,-184.94,0.0003717,2]
[425067525,1781447611000,-151.0,0.0003717,2]
[425067523,1781447611000,-316.04,0.0003717,2]
[425067526,1781447611000,-643.91,0.0003717,2]
[425067522,1781447611000,-185.12,0.0003717,2]
[425067528,1781447611000,-151.0,0.0003717,2]
[425067533,1781447611000,-396.17,0.0003717,2]
[425067539,1781447611000,-185.12,0.0003717,2]
[425067532,1781447611000,-644.12,0.0003717,2]
[425067534,1781447611000,-482.27,0.0003717,2]
[425067536,1781447611000,-644.12,0.0003717,2]
[425067538,1781447611000,-482.27,0.0003717,2]
[425067543,1781447611000,-185.12,0.0003717,2]
[425067542,1781447611000,-396.17,0.0003717,2]
[425067553,1781447611000,-185.1,0.00037175,2]
[425067544,1781447611000,-482.27,0.0003717,2]
[425067545,1781447611000,-482.27,0.0003717,2]
[425067547,1781447611000,-644.12,0.0003717,2]
[425067521,1781447611000,-395.97,0.0003717,2]
[425067549,1781447611000,-151.0,0.0003717,2]
[425067537,1781447611000,-396.17,0.0003717,2]
[425067520,1781447611000,-482.27,0.0003717,2]
[425067506,1781447611000,-463.18095598,0.00037041,120]
[425067518,1781447611000,-573.37,0.0003717,2]
[425067546,1781447611000,-644.12,0.0003717,2]
[425067493,1781447611000,-423.0,0.00037,30]
[425067495,1781447611000,-334.0,0.00037,120]
[425067494,1781447611000,-1500.0,0.00037,30]
[425067505,1781447611000,-500.0,0.00037041,120]
[425067497,1781447611000,-227.231069,0.00037,14]
[425067498,1781447611000,-167.0,0.00037,120]
[425067504,1781447611000,-500.0,0.00037041,120]
[425067501,1781447611000,-500.0,0.00037041,120]
[425067502,1781447611000,-621.57838256,0.00037041,120]
[425067503,1781447611000,-500.0,0.00037041,120]
[425067496,1781447611000,-423.0,0.00037,30]
[425067529,1781447611000,-482.27,0.0003717,2]
[425067499,1781447611000,-169.72074853,0.00037035,2]
[425067508,1781447611000,-2995.565572,0.00037065,7]
[425067517,1781447611000,-482.2,0.0003717,2]
[425067512,1781447611000,-223430.34210905,0.000371,2]
[425067507,1781447611000,-4330.9547724,0.00037065,9]
[425067509,1781447611000,-1511.381572,0.00037065,7]
[425067511,1781447611000,-150.0,0.00037091,120]
[425067510,1781447611000,-4994.18986601,0.00037065,14]
[425067515,1781447611000,-150.0,0.00037125,120]
[425067514,1781447611000,-150.0,0.00037125,120]
[425067516,1781447611000,-313.0,0.00037125,120]
[425067513,1781447611000,-5000.0,0.00037106,7]
[425067519,1781447611000,-185.08,0.0003717,2]
[425067500,1781447611000,-5000.0,0.00037037,7]
[425067551,1781447611000,-482.27,0.00037175,2]
[425067540,1781447611000,-482.27,0.0003717,2]
[425067550,1781447611000,-5000.0,0.00037174,7]
[425067583,1781447611000,-482.27,0.00037175,2]
[425067578,1781447611000,-151.0,0.00037175,2]
[425067584,1781447611000,-151.0,0.00037175,2]
[425067585,1781447611000,-151.0,0.00037175,2]
[425067586,1781447611000,-151.0,0.00037175,2]
[425067587,1781447611000,-151.0,0.00037175,2]
[425067589,1781447611000,-151.0,0.00037175,2]
[425067595,1781447611000,-151.0,0.00037175,2]
[425067588,1781447611000,-151.0,0.00037175,2]
[425067598,1781447611000,-151.0,0.00037175,2]
[425067597,1781447611000,-151.0,0.00037175,2]
[425067596,1781447611000,-151.0,0.00037175,2]
[425067582,1781447611000,-185.12,0.00037175,2]
[425067590,1781447611000,-151.0,0.00037175,2]
[425067592,1781447611000,-151.0,0.00037175,2]
[425067594,1781447611000,-152.08,0.00037175,2]
[425067593,1781447611000,-151.0,0.00037175,2]
[425067600,1781447611000,-644.12,0.00037175,2]
[425067602,1781447611000,-151.0,0.00037175,2]
[425067604,1781447611000,-151.0,0.00037175,2]
[425067601,1781447611000,-151.0,0.00037175,2]
[425067603,1781447611000,-151.0,0.00037175,2]
[425067607,1781447611000,-644.12,0.00037182,2]
[425067605,1781447611000,-573.4,0.00037175,2]
[425067608,1781447611000,-644.12,0.00037182,2]
[425067548,1781447611000,-482.27,0.0003717,2]
[425067591,1781447611000,-151.0,0.00037175,2]
[425067581,1781447611000,-151.0,0.00037175,2]
[425067599,1781447611000,-151.0,0.00037175,2]
[425067579,1781447611000,-151.0,0.00037175,2]
[425067552,1781447611000,-396.05,0.00037175,2]
[425067580,1781447611000,-151.0,0.00037175,2]
[425067554,1781447611000,-643.97,0.00037175,2]
[425067556,1781447611000,-396.17,0.00037175,2]
[425067555,1781447611000,-482.17,0.00037175,2]
[425067557,1781447611000,-151.0,0.00037175,2]
[425067558,1781447611000,-482.27,0.00037175,2]
[425067559,1781447611000,-482.27,0.00037175,2]
[425067563,1781447611000,-184.93,0.00037175,2]
[425067560,1781447611000,-151.0,0.00037175,2]
[425067606,1781447611000,-482.27,0.00037175,2]
[425067564,1781447611000,-151.0,0.00037175,2]
[425067562,1781447611000,-151.0,0.00037175,2]
[425067561,1781447611000,-573.37,0.00037175,2]
[425067568,1781447611000,-151.0,0.00037175,2]
[425067565,1781447611000,-395.99,0.00037175,2]
[425067576,1781447611000,-151.0,0.00037175,2]
[425067569,1781447611000,-151.0,0.00037175,2]
[425067567,1781447611000,-151.0,0.00037175,2]
[425067571,1781447611000,-151.0,0.00037175,2]
[425067570,1781447611000,-185.11,0.00037175,2]
[425067577,1781447611000,-151.0,0.00037175,2]
[425067572,1781447611000,-644.12,0.00037175,2]
[425067574,1781447611000,-573.4,0.00037175,2]
[425067573,1781447611000,-396.17,0.00037175,2]
[425067566,1781447611000,-151.0,0.00037175,2]
[425067575,1781447611000,-151.0,0.00037175,2]
[425067656,1781447612000,-151.21,0.0003722,2]
[425067641,1781447612000,-185.5,0.0003722,2]
[425067657,1781447612000,-151.37,0.0003722,2]
[425067651,1781447612000,-573.37,0.0003722,2]
[425067659,1781447612000,-381.41,0.0003722,2]
[425067640,1781447612000,-151.0,0.0003722,2]
[425067645,1781447612000,-151.0,0.0003722,2]
[425067643,1781447612000,-151.0,0.0003722,2]
[425067644,1781447612000,-151.0,0.0003722,2]
[425067642,1781447612000,-482.27,0.0003722,2]
[425067649,1781447612000,-151.0,0.0003722,2]
[425067647,1781447612000,-151.0,0.0003722,2]
[425067658,1781447612000,-151.0,0.0003722,2]
[425067667,1781447612000,-151.0,0.0003722,2]
[425067650,1781447612000,-151.0,0.0003722,2]
[425067654,1781447612000,-151.0,0.0003722,2]
[425067653,1781447612000,-151.0,0.0003722,2]
[425067655,1781447612000,-151.0,0.0003722,2]
[425067660,1781447612000,-151.0,0.0003722,2]
[425067652,1781447612000,-151.0,0.0003722,2]
[425067662,1781447612000,-151.0,0.0003722,2]
[425067672,1781447612000,-151.0,0.0003722,2]
[425067666,1781447612000,-151.0,0.0003722,2]
[425067665,1781447612000,-151.0,0.0003722,2]
[425067661,1781447612000,-151.0,0.0003722,2]
[425067664,1781447612000,-151.0,0.0003722,2]
[425067638,1781447612000,-151.0,0.0003722,2]
[425067648,1781447612000,-151.0,0.0003722,2]
[425067639,1781447612000,-151.0,0.0003722,2]
[425067609,1781447612000,-482.27,0.00037182,2]
[425067637,1781447612000,-151.0,0.0003722,2]
[425067610,1781447612000,-396.17,0.00037182,2]
[425067663,1781447612000,-151.0,0.0003722,2]
[425067612,1781447612000,-482.27,0.00037182,2]
[425067622,1781447612000,-482.27,0.0003722,2]
[425067614,1781447612000,-482.27,0.00037182,2]
[425067615,1781447612000,-158.24269055,0.00037182,2]
[425067616,1781447612000,-1641.58152,0.000372,120]
[425067611,1781447612000,-396.18,0.00037182,2]
[425067621,1781447612000,-150.0,0.00037209,2]
[425067617,1781447612000,-2570.90034799,0.000372,120]
[425067619,1781447612000,-2570.90034799,0.000372,120]
[425067618,1781447612000,-2570.90034799,0.000372,120]
[425067613,1781447612000,-399.02,0.00037182,2]
[425067623,1781447612000,-151.0,0.0003722,2]
[425067626,1781447612000,-151.32,0.0003722,2]
[425067625,1781447612000,-151.0,0.0003722,2]
[425067632,1781447612000,-151.0,0.0003722,2]
[425067624,1781447612000,-151.0,0.0003722,2]
[425067633,1781447612000,-572.82,0.0003722,2]
[425067628,1781447612000,-151.0,0.0003722,2]
[425067627,1781447612000,-151.0,0.0003722,2]
[425067634,1781447612000,-151.0,0.0003722,2]
[425067629,1781447612000,-643.99,0.0003722,2]
[425067631,1781447612000,-151.0,0.0003722,2]
[425067630,1781447612000,-151.0,0.0003722,2]
[425067636,1781447612000,-152.36,0.0003722,2]
[425067646,1781447612000,-151.0,0.0003722,2]
[425067635,1781447612000,-481.5,0.0003722,2]
[425067670,1781447612000,-151.0,0.0003722,2]
[425067620,1781447612000,-201.91486522,0.00037205,30]
[425067671,1781447612000,-151.0,0.0003722,2]
[425067705,1781447612000,-195.33,0.00037233,2]
[425067699,1781447612000,-241.44,0.00037233,2]
[425067704,1781447612000,-482.28,0.00037233,2]
[425067709,1781447612000,-151.0,0.00037233,2]
[425067702,1781447612000,-151.0,0.00037233,2]
[425067707,1781447612000,-573.37,0.00037233,2]
[425067711,1781447612000,-396.17,0.00037233,2]
[425067721,1781447612000,-185.12,0.00037233,2]
[425067712,1781447612000,-151.0,0.00037233,2]
[425067710,1781447612000,-151.0,0.00037233,2]
[425067719,1781447612000,-151.0,0.00037233,2]
[425067714,1781447612000,-151.0,0.00037233,2]
[425067717,1781447612000,-151.0,0.00037233,2]
[425067718,1781447612000,-151.0,0.00037233,2]
[425067713,1781447612000,-482.27,0.00037233,2]
[425067716,1781447612000,-644.12,0.00037233,2]
[425067715,1781447612000,-151.0,0.00037233,2]
[425067720,1781447612000,-151.0,0.00037233,2]
[425067723,1781447612000,-5000.0,0.00037243,7]
[425067722,1781447612000,-150.55228565,0.0003724,7]
[425067724,1781447612000,-151.0,0.00037243,2]
[425067669,1781447612000,-151.0,0.0003722,2]
[425067726,1781447612000,-573.37,0.00037243,2]
[425067725,1781447612000,-185.05,0.00037243,2]
[425067727,1781447612000,-252.86,0.00037243,2]
[425067729,1781447612000,-396.17,0.00037243,2]
[425067730,1781447612000,-151.0,0.00037243,2]
[425067708,1781447612000,-151.0,0.00037233,2]
[425067706,1781447612000,-151.0,0.00037233,2]
[425067728,1781447612000,-151.0,0.00037243,2]
[425067701,1781447612000,-151.0,0.00037233,2]
[425067703,1781447612000,-151.0,0.00037233,2]
[425067668,1781447612000,-185.13,0.0003722,2]
[425067673,1781447612000,-151.0,0.0003722,2]
[425067684,1781447612000,-151.51,0.00037233,2]
[425067675,1781447612000,-151.0,0.0003722,2]
[425067678,1781447612000,-151.0,0.0003722,2]
[425067676,1781447612000,-151.0,0.0003722,2]
[425067677,1781447612000,-644.12,0.0003722,2]
[425067680,1781447612000,-151.0,0.00037233,2]
[425067681,1781447612000,-151.0,0.00037233,2]
[425067679,1781447612000,-151.0,0.00037233,2]
[425067682,1781447612000,-151.0,0.00037233,2]
[425067683,1781447612000,-151.0,0.00037233,2]
[425067686,1781447612000,-151.0,0.00037233,2]
[425067674,1781447612000,-151.0,0.0003722,2]
[425067685,1781447612000,-151.0,0.00037233,2]
[425067697,1781447612000,-396.17,0.00037233,2]
[425067700,1781447612000,-151.82,0.00037233,2]
[425067692,1781447612000,-396.12,0.00037233,2]
[425067691,1781447612000,-151.0,0.00037233,2]
[425067690,1781447612000,-151.0,0.00037233,2]
[425067695,1781447612000,-151.0,0.00037233,2]
[425067694,1781447612000,-573.32,0.00037233,2]
[425067689,1781447612000,-151.0,0.00037233,2]
[425067693,1781447612000,-151.0,0.00037233,2]
[425067687,1781447612000,-151.0,0.00037233,2]
[425067698,1781447612000,-151.0,0.00037233,2]
[425067688,1781447612000,-267.28,0.00037233,2]
[425067696,1781447612000,-151.0,0.00037233,2]
[425067758,1781447613000,-1000.0,0.00037267,2]
[425067756,1781447613000,-1000.0,0.00037267,2]
[425067757,1781447613000,-1000.0,0.00037267,2]
[425067759,1781447613000,-1000.0,0.00037267,2]
[425067763,1781447613000,-1000.0,0.00037267,2]
[425067769,1781447613000,-1000.0,0.00037267,2]
[425067765,1781447613000,-1000.0,0.00037267,2]
[425067764,1781447613000,-1000.0,0.00037267,2]
[425067766,1781447613000,-1000.0,0.00037267,2]
[425067761,1781447613000,-1000.0,0.00037267,2]
[425067773,1781447613000,-1000.0,0.00037267,2]
[425067771,1781447613000,-1000.0,0.00037267,2]
[425067768,1781447613000,-1000.0,0.00037267,2]
[425067770,1781447613000,-1000.0,0.00037267,2]
[425067772,1781447613000,-1000.0,0.00037267,2]
[425067774,1781447613000,-1000.0,0.00037267,2]
[425067776,1781447613000,-1000.0,0.00037267,2]
[425067783,1781447613000,-1000.0,0.00037267,2]
[425067784,1781447613000,-1000.0,0.00037267,2]
[425067782,1781447613000,-1000.0,0.00037267,2]
[425067762,1781447613000,-1000.0,0.00037267,2]
[425067767,1781447613000,-1000.0,0.00037267,2]
[425067760,1781447613000,-1000.0,0.00037267,2]
[425067742,1781447613000,-151.0,0.00037243,2]
[425067754,1781447613000,-1000.0,0.00037267,2]
[425067732,1781447613000,-151.0,0.00037243,2]
[425067733,1781447613000,-151.0,0.00037243,2]
[425067731,1781447613000,-151.0,0.00037243,2]
[425067734,1781447613000,-644.12,0.00037243,2]
[425067735,1781447613000,-151.0,0.00037243,2]
[425067737,1781447613000,-151.0,0.00037243,2]
[425067736,1781447613000,-151.0,0.00037243,2]
[425067740,1781447613000,-151.0,0.00037243,2]
[425067738,1781447613000,-151.0,0.00037243,2]
[425067739,1781447613000,-151.0,0.00037243,2]
[425067752,1781447613000,-1000.0,0.00037267,2]
[425067741,1781447613000,-151.0,0.00037243,2]
[425067747,1781447613000,-1001.0,0.0003726,14]
[425067751,1781447613000,-1000.0,0.00037267,2]
[425067748,1781447613000,-153.0,0.0003726,10]
[425067745,1781447613000,-2000.0,0.0003726,2]
[425067744,1781447613000,-500.0,0.0003726,120]
[425067749,1781447613000,-1000.0,0.00037267,2]
[425067746,1781447613000,-1000.0,0.0003726,8]
[425067750,1781447613000,-1000.0,0.00037267,2]
[425067753,1781447613000,-1000.0,0.00037267,2]
[425067755,1781447613000,-1000.0,0.00037267,2]
[425067743,1781447613000,-151.0,0.00037243,2]
[425067779,1781447613000,-1000.0,0.00037267,2]
[425067775,1781447613000,-1000.0,0.00037267,2]
[425067781,1781447613000,-1000.0,0.00037267,2]
[425067808,1781447613000,-1000.0,0.00037267,2]
[425067806,1781447613000,-1000.0,0.00037267,2]
[425067812,1781447613000,-1000.0,0.00037267,2]
[425067822,1781447613000,-20000.0,0.000373,7]
[425067811,1781447613000,-1000.0,0.00037267,2]
[425067823,1781447613000,-1717.54477344,0.00037302,7]
[425067814,1781447613000,-1000.0,0.00037267,2]
[425067816,1781447613000,-1000.0,0.00037267,2]
[425067817,1781447613000,-1000.0,0.00037267,2]
[425067813,1781447613000,-1000.0,0.00037267,2]
[425067804,1781447613000,-1000.0,0.00037267,2]
[425067819,1781447613000,-497.0,0.00037274,10]
[425067821,1781447613000,-298.8808056,0.00037278,120]
[425067820,1781447613000,-164.372755,0.00037276,18]
[425067824,1781447613000,-150.0,0.0003731,120]
[425067828,1781447613000,-501.50342416,0.0003735,30]
[425067827,1781447613000,-1597.02033528,0.00037348,2]
[425067826,1781447613000,-5000.0,0.00037316,7]
[425067830,1781447613000,-10000.0,0.0003736,14]
[425067829,1781447613000,-200.0,0.00037356,60]
[425067825,1781447613000,-5000.0,0.00037312,7]
[425067777,1781447613000,-1000.0,0.00037267,2]
[425067818,1781447613000,-1000.0,0.00037267,2]
[425067805,1781447613000,-1000.0,0.00037267,2]
[425067815,1781447613000,-1000.0,0.00037267,2]
[425067810,1781447613000,-1000.0,0.00037267,2]
[425067778,1781447613000,-1000.0,0.00037267,2]
[425067807,1781447613000,-1000.0,0.00037267,2]
[425067780,1781447613000,-1000.0,0.00037267,2]
[425067785,1781447613000,-1000.0,0.00037267,2]
[425067788,1781447613000,-1000.0,0.00037267,2]
[425067787,1781447613000,-1000.0,0.00037267,2]
[425067786,1781447613000,-1000.0,0.00037267,2]
[425067792,1781447613000,-1000.0,0.00037267,2]
[425067793,1781447613000,-1000.0,0.00037267,2]
[425067794,1781447613000,-1000.0,0.00037267,2]
[425067790,1781447613000,-1000.0,0.00037267,2]
[425067789,1781447613000,-1000.0,0.00037267,2]
[425067795,1781447613000,-1000.0,0.00037267,2]
[425067797,1781447613000,-1000.0,0.00037267,2]
[425067791,1781447613000,-1000.0,0.00037267,2]
[425067796,1781447613000,-1000.0,0.00037267,2]
[425067799,1781447613000,-1000.0,0.00037267,2]
[425067809,1781447613000,-1000.0,0.00037267,2]
[425067802,1781447613000,-573.0,0.00037267,2]
[425067803,1781447613000,-1000.0,0.00037267,2]
[425067801,1781447613000,-1000.0,0.00037267,2]
[425067798,1781447613000,-1000.0,0.00037267,2]
[425067800,1781447613000,-1000.0,0.00037267,2]
[425067866,1781447614000,-1024.03102744,0.00037449,2]
[425067865,1781447614000,-500.0,0.00037449,2]
[425067870,1781447614000,-158.24269055,0.00037456,2]
[425067867,1781447614000,-407.0,0.00037449,2]
[425067864,1781447614000,-150.0,0.00037449,2]